[Event "Khanty-Mansiysk FIDE GP"]
[Site "Khanty-Mansiysk"]
[Date "2015.05.20"]
[Round "6"]
[White "Tomashevsky, Evgeny"]
[Black "Nakamura, Hikaru"]
[Result "1/2-1/2"]
[ECO "E05"]
[WhiteElo "2749"]
[BlackElo "2799"]
[PlyCount "60"]
[EventDate "2015.05.14"]
[EventType "tourn"]
[EventRounds "11"]
[EventCountry "RUS"]
[EventCategory "21"]
[SourceTitle "CBM 167"]
[Source "ChessBase"]
[SourceDate "2015.07.13"]
[SourceVersion "1"]
[SourceVersionDate "2015.07.13"]
[SourceQuality "1"]
[TimeControl "40/7200:20/3600:900+30"]

1. d4 {[%emt 0:00:03]} Nf6 {[%emt 0:00:06]} 2. c4 {[%emt 0:00:06]} e6 {[%emt 0:
00:03]} 3. Nf3 {[%emt 0:00:26]} d5 {[%emt 0:00:05]} 4. g3 {[%emt 0:00:15]} Be7
{[%emt 0:00:06]} 5. Bg2 {[%emt 0:01:00]} O-O {[%emt 0:00:06]} 6. O-O {[%emt 0:
00:08]} dxc4 {[%emt 0:00:02]} 7. Ne5 {[%emt 0:01:08]} Nc6 {[%emt 0:00:12]} 8.
Bxc6 {[%emt 0:00:28]} bxc6 {[%emt 0:00:06]} 9. Nxc6 {[%emt 0:00:09]} Qe8 {
[%emt 0:00:09]} 10. Nxe7+ {[%emt 0:00:08]} Qxe7 {[%emt 0:00:03]} 11. Qc2 {
[%emt 0:00:33]} (11. Na3 c5 12. dxc5 Qxc5 13. Be3 Qc6 14. Rc1 Bb7 15. f3 Ba6
16. Nxc4 Bxc4 17. Qd4 Rfc8 18. b3 Qa6 19. bxc4 Qxa2 20. Kf2 a5 21. Bg5 e5 22.
Qd6 Rd8 23. Qb6 Rab8 24. Rfd1 Re8 25. Qe3 a4 26. Bxf6 gxf6 27. Qe4 a3 28. Rd7
Rbd8 29. Ra7 Qb2 30. Rb1 f5 31. Rxb2 fxe4 32. Rxa3 Rd4 33. Rc2 Rc8 34. c5 exf3
35. Rxf3 Rc6 36. Rd3 Rxd3 37. exd3 f5 38. d4 exd4 39. Ke2 {1-0 (39) Kramnik,V 
(2783)-Adams,M (2745) Shamkir 2015}) 11... e5 {[%emt 0:04:49]} 12. dxe5 {
[%emt 0:00:47]} Qxe5 {[%emt 0:01:16]} 13. Bf4 {[%emt 0:00:07]} Qh5 $146 {
[%emt 0:10:39]} (13... Qe6 14. Nc3 Bb7 15. Rfd1 h6 16. f3 g5 17. Bxc7 Rac8 18.
Ba5 Rfe8 19. Qd2 Rc5 20. Bd8 Nd5 21. Ne4 Rc8 22. Ba5 f5 23. Nxg5 hxg5 24. Qxg5+
Kf7 25. e4 Nf6 26. Bc3 Rg8 27. Qxf6+ Qxf6 28. Bxf6 Kxf6 29. Rd7 Rg7 30. Rad1
Rxd7 31. Rxd7 Bc6 32. Rxa7 fxe4 33. fxe4 Ke5 34. Re7+ Kd4 35. e5 Rb8 36. Rc7
Bd5 37. b3 c3 38. g4 Ra8 39. Kf2 Rxa2+ 40. Kg3 c2 {0-1 (40) Schmuecker,M (2213)
-Hausrath,D (2488) Oberhausen 2013}) 14. Nc3 {[%emt 0:02:44]} Nd5 {[%emt 0:09:
17]} 15. Nxd5 {[%emt 0:12:28]} Qxd5 {[%emt 0:00:12]} 16. Rfd1 {[%emt 0:00:09]}
Qc6 {[%emt 0:02:36] A Catalan that promises White a tiny advantage in an
opposite colored bishop endgame with heavy pieces. Nakamura was able to defend
his position easily and was never in any real danger.} 17. Rd4 {[%emt 0:08:55]}
Bh3 {[%emt 0:16:25]} 18. f3 {[%emt 0:00:50]} Be6 {[%emt 0:00:13]} 19. Rad1 {
[%emt 0:05:45]} Qb6 {[%emt 0:02:00]} 20. Qc3 {[%emt 0:09:49]} f6 {[%emt 0:10:
51]} 21. Kg2 {[%emt 0:01:45]} Rae8 {[%emt 0:02:30]} 22. R1d2 {[%emt 0:02:46]}
a5 {[%emt 0:05:40]} 23. g4 {[%emt 0:19:32]} a4 {[%emt 0:03:57]} 24. Bg3 {
[%emt 0:01:54]} Qc5 {[%emt 0:01:45]} 25. Re4 {[%emt 0:14:31]} Rf7 {[%emt 0:09:
12]} 26. Qe3 {[%emt 0:02:00]} Qxe3 {[%emt 0:05:41]} 27. Rxe3 {[%emt 0:00:01]}
Rfe7 {[%emt 0:00:18]} 28. Bf2 {[%emt 0:07:32]} Kf7 {[%emt 0:01:53]} 29. Rc3 {
[%emt 0:03:08]} Rb8 {[%emt 0:02:01]} 30. Rcc2 {[%emt 0:02:56]} Rb5 {[%emt 0:05:
10]} 1/2-1/2

[Event "Khanty-Mansiysk FIDE GP"]
[Site "Khanty-Mansiysk"]
[Date "2015.05.26"]
[Round "11"]
[White "Nakamura, Hikaru"]
[Black "Jakovenko, Dmitrij"]
[Result "1/2-1/2"]
[ECO "E32"]
[WhiteElo "2799"]
[BlackElo "2738"]
[PlyCount "75"]
[EventDate "2015.05.14"]
[EventType "tourn"]
[EventRounds "11"]
[EventCountry "RUS"]
[EventCategory "21"]
[SourceTitle "CBM 167"]
[Source "ChessBase"]
[SourceDate "2015.07.13"]
[SourceVersion "1"]
[SourceVersionDate "2015.07.13"]
[SourceQuality "1"]
[TimeControl "40/7200:20/3600:900+30"]

1. d4 {[%emt 0:00:03] Everyone's focus was clearly on this game. Jakovenko
needed to win to guarantee his spot on the Candidates, while a draw required a
series of highly unlikely and borderline miraculous results for him to qualify.
Nakamura came into the game with a very sound and clear strategy: play solid,
trade everything, draw. This is basically what happened in the game as
Jakovenko simply could not create enough complications.} Nf6 {[%emt 0:00:05]}
2. c4 {[%emt 0:00:05]} e6 {[%emt 0:00:04]} 3. Nc3 {[%emt 0:00:05]} Bb4 {
[%emt 0:00:06]} 4. Qc2 {[%emt 0:00:04]} d6 {[%emt 0:03:18]} 5. a3 {[%emt 0:00:
39]} Bxc3+ {[%emt 0:00:06]} 6. Qxc3 {[%emt 0:00:04]} O-O {[%emt 0:00:54]} 7.
Bg5 {[%emt 0:02:06]} Nbd7 {[%emt 0:01:21]} 8. e3 {[%emt 0:00:50]} b6 {[%emt 0:
04:46]} 9. Ne2 {[%emt 0:01:17]} Ba6 {[%emt 0:05:16]} 10. Rd1 {[%emt 0:04:32]}
h6 $146 {[%emt 0:06:45]} (10... Rc8 11. Qc2 c5 12. Qa4 Bb7 13. Nc3 a6 14. Be2
Bxg2 15. Rg1 Bc6 16. Qc2 Kh8 17. d5 exd5 18. cxd5 Bb7 19. Bg4 Rc7 20. Bxd7 Qxd7
21. Bxf6 gxf6 22. Ne4 Qf5 23. Qc3 Rg8 24. Rxg8+ Kxg8 25. Nxf6+ Kf8 26. e4 Qf4
27. Rd3 Ke7 28. Rf3 Qxh2 29. Ke2 Qh4 30. e5 Rc8 31. Rf5 Re8 32. exd6+ Kd8+ 33.
Nxe8 Qe4+ 34. Qe3 Qc2+ 35. Kf1 Qd1+ 36. Qe1 Qxe1+ 37. Kxe1 Kxe8 38. d7+ Kd8 39.
Rxf7 Bxd5 40. Rf6 {Jojua,D (2579)-Sanal,V (2460) Jerusalem 2015 1-0}) 11. Bxf6
{[%emt 0:06:06]} Nxf6 {[%emt 0:03:10]} 12. Ng3 {[%emt 0:00:06]} c5 {[%emt 0:03:
53]} 13. Be2 {[%emt 0:01:53]} Qc7 {[%emt 0:03:52]} 14. O-O {[%emt 0:00:55]}
Rac8 {[%emt 0:00:31]} 15. Rc1 {[%emt 0:13:35]} cxd4 {[%emt 0:08:17]} 16. Qxd4 {
[%emt 0:00:26]} Rfd8 {[%emt 0:00:21]} 17. Qd2 {[%emt 0:00:22]} Qb8 {[%emt 0:02:
15]} 18. Rfd1 {[%emt 0:01:24]} d5 {[%emt 0:05:19]} 19. cxd5 {[%emt 0:00:42]}
Rxd5 {[%emt 0:02:18]} 20. Qe1 {[%emt 0:00:05]} Rxc1 {[%emt 0:11:06]} 21. Rxc1 {
[%emt 0:00:08]} Bxe2 {[%emt 0:00:07]} 22. Qxe2 {[%emt 0:03:53]} Qd8 {[%emt 0:
04:42]} 23. h3 {[%emt 0:04:15]} Rd3 {[%emt 0:05:35]} 24. Nh5 {[%emt 0:05:17]}
Nxh5 {[%emt 0:02:50]} 25. Qxh5 {[%emt 0:00:18]} Rd2 {[%emt 0:00:15]} 26. Qe5 {
[%emt 0:03:46]} Rxf2 {[%emt 0:16:08]} 27. Kxf2 {[%emt 0:00:14]} Qd2+ {[%emt 0:
00:04]} 28. Kf3 {[%emt 0:00:02]} Qxc1 {[%emt 0:00:05]} 29. Qb8+ {[%emt 0:00:02]
} Kh7 {[%emt 0:00:07]} 30. Qxa7 {[%emt 0:00:01]} Qf1+ {[%emt 0:08:14]} 31. Kg3
{[%emt 0:00:23]} Qe1+ {[%emt 0:00:35]} 32. Kh2 {[%emt 0:00:54]} Qxe3 {[%emt 0:
01:31]} 33. Qxf7 {[%emt 0:00:05]} b5 {[%emt 0:00:34]} 34. Qd7 {[%emt 0:03:50]}
Qf4+ {[%emt 0:02:06]} 35. Kg1 {[%emt 0:00:09]} Qc1+ {[%emt 0:00:07]} 36. Kh2 {
[%emt 0:00:05]} Qf4+ {[%emt 0:00:03]} 37. Kg1 {[%emt 0:00:06]} Qc4 {[%emt 0:00:
10]} 38. Qd1 {[%emt 0:03:14]} 1/2-1/2